bitfinex-derivatives/quotes_BTCF0:USTF0_20250910
["timestamp","ask_amount","ask_price","bid_price","bid_amount"]
[1757514558056,0.17390279,114170.0,114160.0,0.65713299]
[1757514558266,0.17390279,114170.0,114160.0,0.56955279]
[1757514558651,1.17892,114180.0,114170.0,0.01285]
[1757514558861,1.54841558,114180.0,114170.0,0.03485]
[1757514559465,0.73029558,114180.0,114170.0,0.03485]
[1757514559870,0.73129558,114180.0,114170.0,0.03485]
[1757514560071,1.56249558,114180.0,114170.0,0.022]
[1757514560266,1.56349558,114180.0,114170.0,0.022]
[1757514560474,1.81349558,114180.0,114170.0,0.022]
[1757514560773,1.81345558,114180.0,114170.0,0.022]
[1757514563672,1.46565,114180.0,114170.0,0.022]
[1757514563866,1.81345558,114180.0,114170.0,0.022]
[1757514565171,1.83393759,114180.0,114170.0,0.022]
[1757514568776,1.01589759,114180.0,114170.0,0.022]
[1757514568975,1.83373759,114180.0,114170.0,0.022]
[1757514570272,1.81525558,114180.0,114170.0,0.022]
[1757514570572,1.83574009,114180.0,114170.0,0.022]
[1757514570771,1.83374009,114180.0,114170.0,0.022]
[1757514570975,1.83574009,114180.0,114170.0,0.022]
[1757514571173,1.6618373,114180.0,114170.0,0.022]
[1757514571375,1.83574009,114180.0,114170.0,0.022]
[1757514572285,1.01790009,114180.0,114170.0,0.022]
[1757514572579,1.83366009,114180.0,114170.0,0.022]
[1757514572779,1.83466009,114180.0,114170.0,0.022]
[1757514573179,1.81417558,114180.0,114170.0,0.022]
[1757514574274,1.46637,114180.0,114170.0,0.022]
[1757514574471,1.81417558,114180.0,114170.0,0.022]
[1757514576178,0.99641558,114180.0,114170.0,0.022]
[1757514576379,1.81409558,114180.0,114170.0,0.022]
[1757514577583,1.81405558,114180.0,114170.0,0.022]
[1757514578280,0.0355,114160.0,114150.0,0.0216]
[1757514578482,2.09640837,114160.0,114150.0,0.0216]
[1757514578985,1.92250558,114160.0,114150.0,0.0216]
[1757514579480,1.92246558,114160.0,114150.0,0.0236]
[1757514580477,1.10490558,114160.0,114150.0,0.0236]
[1757514580683,1.92346558,114160.0,114150.0,0.0226]
[1757514581082,1.10590558,114160.0,114150.0,0.0226]
[1757514581284,1.56262558,114160.0,114150.0,0.03588]
[1757514581785,1.56262558,114160.0,114150.0,0.03488]
[1757514582180,0.74510558,114160.0,114150.0,0.03488]
[1757514582376,1.56266558,114160.0,114150.0,0.03488]
[1757514582578,1.63209807,114160.0,114150.0,0.03488]
[1757514583979,0.81453807,114160.0,114150.0,0.0216]
[1757514584184,1.63205807,114160.0,114150.0,0.0216]
[1757514584385,1.51641619,114160.0,114150.0,0.0216]
[1757514584690,0.69889619,114160.0,114150.0,0.0216]
[1757514584887,1.51637619,114160.0,114150.0,0.0216]
[1757514585784,1.51633619,114160.0,114150.0,0.0216]
[1757514588090,0.69889619,114160.0,114150.0,0.0216]
[1757514588389,1.51629619,114160.0,114150.0,0.0216]
[1757514590187,0.69889619,114160.0,114150.0,0.0216]
[1757514590693,0.45322249,114160.0,114150.0,0.15096185]
[1757514590892,1.02582434,114160.0,114150.0,0.21341692]
[1757514591291,1.02582434,114160.0,114150.0,0.09733507]
[1757514591490,0.20850434,114160.0,114150.0,0.09733507]
[1757514591690,0.001,114160.0,114150.0,0.46341692]
[1757514591991,0.001,114160.0,114150.0,0.82421692]
[1757514592192,0.02299,114160.0,114150.0,0.82421692]
[1757514592392,0.001,114160.0,114150.0,0.82421692]
[1757514593694,0.02299,114160.0,114150.0,0.82421692]
[1757514594090,0.13907185,114160.0,114150.0,0.70813507]
[1757514594292,0.13907185,114160.0,114150.0,0.09733507]
[1757514594594,0.8794637,114160.0,114150.0,0.08405507]
[1757514595587,0.8794637,114160.0,114150.0,0.0216]
[1757514596590,0.71762927,114160.0,114150.0,0.0216]
[1757514596895,0.94979297,114160.0,114150.0,0.0216]
[1757514598396,0.0355,114150.0,114140.0,0.09700507]
[1757514598597,0.51238185,114150.0,114140.0,0.09700507]
[1757514598788,1.32950185,114150.0,114140.0,0.09700507]
[1757514599796,1.33837598,114150.0,114140.0,0.09800507]
[1757514600293,1.45445783,114150.0,114140.0,0.08505507]
[1757514600599,1.45445783,114150.0,114140.0,0.0226]
[1757514600600,1.33837598,114150.0,114140.0,0.0226]
[1757514601298,1.33837598,114150.0,114140.0,0.0236]
[1757514601597,1.70445783,114150.0,114140.0,0.002]
[1757514601796,0.65517413,114150.0,114140.0,0.002]
[1757514601994,1.58829598,114150.0,114140.0,0.002]
[1757514602200,1.58829598,114150.0,114140.0,0.0236]
[1757514603197,1.20870413,114150.0,114140.0,0.03688]
[1757514603498,1.32478598,114150.0,114140.0,0.03688]
[1757514603697,0.49887185,114150.0,114140.0,0.03688]
[1757514603994,0.02199,114150.0,114140.0,0.21541692]
[1757514604495,0.02199,114150.0,114140.0,0.03688]
[1757514604697,0.02199,114150.0,114140.0,0.15296185]
[1757514605095,0.02199,114150.0,114140.0,0.03688]
[1757514605490,0.02199,114150.0,114140.0,0.40296185]
[1757514605698,1.39515292,114160.0,114150.0,0.03488]
[1757514605894,1.27907107,114160.0,114150.0,0.09775697]
[1757514606095,0.57819292,114160.0,114150.0,0.09775697]
[1757514606298,1.40866292,114160.0,114150.0,0.09775697]
[1757514606501,1.40862292,114160.0,114150.0,0.03488]
[1757514606999,1.40962292,114160.0,114150.0,0.03488]
[1757514607199,1.40962292,114160.0,114150.0,0.0216]
[1757514608098,0.001,114160.0,114150.0,0.91177662]
[1757514608306,0.001,114160.0,114150.0,0.8773937]
[1757514608500,0.001,114160.0,114150.0,0.82418882]
[1757514608894,0.001,114160.0,114150.0,0.92062488]
[1757514609300,0.001,114160.0,114150.0,0.76131185]
[1757514609502,0.001,114160.0,114150.0,0.84889975]
[1757514609999,0.001,114160.0,114150.0,0.7701802]
[1757514610303,0.001,114160.0,114150.0,0.97384995]
[1757514610707,0.001,114160.0,114150.0,0.99173891]
[1757514611097,0.001,114160.0,114150.0,1.13271141]
[1757514611297,0.001,114160.0,114150.0,1.05464258]
[1757514613012,2.8684523,114200.0,114190.0,0.03459]
[1757514613304,0.58361415,114200.0,114190.0,0.03459]
[1757514613502,0.58361415,114200.0,114190.0,0.02176]
[1757514614303,0.4675323,114200.0,114190.0,0.02176]
[1757514614507,0.4715323,114200.0,114190.0,0.02176]
[1757514614703,0.703696,114200.0,114190.0,0.02176]
[1757514615107,0.4715323,114200.0,114190.0,0.02176]
[1757514615301,0.48044192,114200.0,114190.0,0.03459]
[1757514615500,0.58271377,114200.0,114190.0,0.15067185]
[1757514615701,0.58771377,114200.0,114190.0,0.03459]
[1757514616301,0.71760562,114200.0,114190.0,0.02176]
[1757514616700,0.03495,114190.0,114180.0,0.44541039]
[1757514616904,0.6279137,114190.0,114180.0,0.02176]
[1757514617103,0.8779137,114190.0,114180.0,0.02176]
[1757514617304,0.03495,114180.0,114170.0,0.11537701]
[1757514617506,0.2671137,114180.0,114170.0,0.11537701]
[1757514618305,0.15103185,114180.0,114170.0,0.11537701]
[1757514618708,0.13722185,114180.0,114170.0,0.11537701]
[1757514619014,0.13722185,114180.0,114170.0,0.47617701]
[1757514619310,0.02314,114180.0,114170.0,0.47617701]
[1757514619615,0.13922185,114180.0,114170.0,0.47617701]
[1757514619814,0.14222185,114180.0,114170.0,0.47617701]
[1757514620014,0.02614,114180.0,114170.0,0.47617701]
[1757514622711,0.02614,114180.0,114170.0,0.59225886]
[1757514624711,0.02614,114180.0,114170.0,0.67983136]
[1757514624913,0.005,114180.0,114170.0,0.92983136]
[1757514625714,0.005,114180.0,114170.0,0.81374951]
[1757514625912,0.005,114180.0,114170.0,0.72617701]
[1757514626119,0.005,114180.0,114170.0,0.84225886]
[1757514626312,0.005,114180.0,114170.0,1.65853886]
[1757514626620,0.005,114180.0,114170.0,1.74611136]
[1757514628512,0.005,114180.0,114170.0,1.86219321]
[1757514628714,0.17127838,114210.0,114200.0,0.03459]
[1757514628909,0.15746838,114210.0,114200.0,0.03459]
[1757514629710,0.16246838,114210.0,114200.0,0.03459]
[1757514630017,0.1234728,114210.0,114200.0,0.03459]
[1757514630418,0.1304728,114210.0,114200.0,0.03559]
[1757514630605,0.62116465,114210.0,114200.0,0.02276]
[1757514630918,0.62116465,114210.0,114200.0,0.001]
[1757514631117,0.62116465,114210.0,114200.0,0.02276]
[1757514631318,0.61816465,114210.0,114200.0,0.02276]
[1757514631910,0.61216465,114210.0,114200.0,0.02176]
[1757514632214,0.03495,114200.0,114190.0,0.02176]
[1757514632419,0.15103185,114200.0,114190.0,0.02176]
[1757514632812,0.15103185,114200.0,114190.0,0.03459]
[1757514633616,0.15103185,114200.0,114190.0,0.03559]
[1757514634022,0.8779137,114200.0,114190.0,0.02276]
[1757514634216,0.8779137,114200.0,114190.0,0.001]
[1757514634621,0.8789137,114200.0,114190.0,0.001]
[1757514635312,0.64675,114200.0,114190.0,0.001]
[1757514635511,0.8789137,114200.0,114190.0,0.001]
[1757514638223,0.89999461,114200.0,114190.0,0.001]
[1757514638619,0.66783091,114200.0,114190.0,0.001]
[1757514638820,0.89999461,114200.0,114190.0,0.001]
[1757514639318,0.64999461,114200.0,114190.0,0.001]
[1757514639922,1.01607646,114200.0,114190.0,0.001]
[1757514640624,1.83191646,114200.0,114190.0,0.001]
[1757514642422,1.71583461,114200.0,114190.0,0.001]
[1757514643822,1.71579461,114200.0,114190.0,0.001]
[1757514644319,0.76592331,114200.0,114190.0,0.001]
[1757514644523,1.58168331,114200.0,114190.0,0.02276]
[1757514644819,1.58168331,114200.0,114190.0,0.001]
[1757514646320,0.76592331,114200.0,114190.0,0.001]
[1757514646527,1.58168331,114200.0,114190.0,0.001]
[1757514646927,1.58164331,114200.0,114190.0,0.001]
[1757514647132,1.23355091,114200.0,114190.0,0.001]
[1757514647320,1.58164331,114200.0,114190.0,0.001]
[1757514648327,1.75568951,114200.0,114190.0,0.001]
[1757514648729,0.93996951,114200.0,114190.0,0.001]
[1757514648927,1.58160331,114200.0,114190.0,0.001]
[1757514650329,1.75564951,114200.0,114190.0,0.001]
[1757514651324,0.93996951,114200.0,114190.0,0.001]
[1757514651623,1.75560951,114200.0,114190.0,0.001]
[1757514653226,1.23347091,114200.0,114190.0,0.001]
[1757514653418,1.75560951,114200.0,114190.0,0.001]
[1757514654329,0.93996951,114200.0,114190.0,0.001]
[1757514654519,1.75556951,114200.0,114190.0,0.001]
[1757514660136,0.93996951,114200.0,114190.0,0.001]
[1757514660842,1.75544951,114200.0,114190.0,0.001]
[1757514661835,1.23331091,114200.0,114190.0,0.02417]
[1757514662033,1.23331091,114200.0,114190.0,0.001]
[1757514662034,1.75544951,114200.0,114190.0,0.001]
[1757514662230,1.58140331,114200.0,114190.0,0.001]
[1757514662430,0.76592331,114200.0,114190.0,0.001]
[1757514662626,0.41783091,114200.0,114190.0,0.4482162]
[1757514662832,1.0116262,114200.0,114190.0,0.4613162]
[1757514663338,1.5597324,114200.0,114190.0,0.27417]
[1757514663639,1.5597324,114200.0,114190.0,0.28727]
[1757514663838,0.7442924,114200.0,114190.0,0.28727]
[1757514664042,1.5597324,114200.0,114190.0,0.28727]
[1757514664541,1.21164,114200.0,114190.0,0.28727]
[1757514664733,1.5597324,114200.0,114190.0,0.28727]
[1757514665034,1.21164,114200.0,114190.0,0.28727]
[1757514665238,1.5597324,114200.0,114190.0,0.27417]
[1757514665432,1.21164,114200.0,114190.0,0.27417]
[1757514665634,1.5597324,114200.0,114190.0,0.27417]
[1757514666138,1.21164,114200.0,114190.0,0.27417]
[1757514666334,1.5597324,114200.0,114190.0,0.27417]
[1757514666635,1.19838,114200.0,114190.0,0.28727]
[1757514666939,0.5569862,114200.0,114190.0,0.4613162]
[1757514667140,1.3723062,114200.0,114190.0,0.4613162]
[1757514667437,0.38294,114200.0,114190.0,0.4613162]
[1757514667731,1.3723062,114200.0,114190.0,0.4613162]
[1757514667936,1.3723062,114200.0,114190.0,0.28727]
[1757514668136,1.3723062,114200.0,114190.0,0.4613162]
[1757514668535,1.5597924,114200.0,114190.0,0.27417]
[1757514669334,1.2117,114200.0,114190.0,0.27417]
[1757514669537,1.5597924,114200.0,114190.0,0.27417]
[1757514672338,1.5597924,114200.0,114190.0,0.02417]
[1757514672537,1.5597924,114200.0,114190.0,0.001]
[1757514672839,2.00495069,114200.0,114190.0,0.001]
[1757514673839,1.58078449,114200.0,114190.0,0.02363]
[1757514674028,0.41749209,114200.0,114190.0,0.02363]
[1757514674238,0.76558449,114200.0,114190.0,0.02363]
[1757514674535,1.5596324,114200.0,114190.0,0.03644]
[1757514674836,0.7444724,114200.0,114190.0,0.03644]
[1757514675043,0.5704262,114200.0,114190.0,0.03644]
[1757514675244,1.3855862,114200.0,114190.0,0.03644]
[1757514676639,0.5704262,114200.0,114190.0,0.03644]
[1757514676940,1.3855862,114200.0,114190.0,0.03644]
[1757514678843,1.21154,114200.0,114190.0,0.03644]
[1757514679045,1.3855862,114200.0,114190.0,0.2104862]
[1757514679344,1.3855862,114200.0,114190.0,0.03644]
[1757514679645,1.5596324,114200.0,114190.0,0.03644]
[1757514680240,1.3855062,114200.0,114190.0,0.2104862]
[1757514680638,1.3855062,114200.0,114190.0,0.03644]
[1757514680845,1.5595524,114200.0,114190.0,0.02363]
[1757514683351,0.39638,114200.0,114190.0,0.02363]
[1757514683548,1.5594724,114200.0,114190.0,0.02363]
[1757514684049,1.21138,114200.0,114190.0,0.02363]
[1757514684241,1.5594724,114200.0,114190.0,0.02363]
[1757514685648,1.21138,114200.0,114190.0,0.02363]
[1757514686050,1.5594724,114200.0,114190.0,0.02363]
[1757514688351,1.21138,114200.0,114190.0,0.02363]
[1757514688552,1.5594724,114200.0,114190.0,0.02363]
[1757514689346,1.5594324,114200.0,114190.0,0.02363]
[1757514689542,1.5593924,114200.0,114190.0,0.02363]
[1757514690952,0.39638,114200.0,114190.0,0.02363]
[1757514691252,1.5593924,114200.0,114190.0,0.02363]
[1757514693451,1.2113,114200.0,114190.0,0.02363]
[1757514693747,1.5593924,114200.0,114190.0,0.02363]
[1757514694958,0.7444724,114200.0,114190.0,0.02363]
[1757514695256,1.5593124,114200.0,114190.0,0.02363]
[1757514697453,0.7444724,114200.0,114190.0,0.02363]
[1757514697652,1.5592324,114200.0,114190.0,0.02363]
[1757514697855,1.21114,114200.0,114190.0,0.02363]
[1757514698154,1.5592324,114200.0,114190.0,0.02363]
[1757514698357,1.58036825,114200.0,114190.0,0.02363]
[1757514698652,0.76560825,114200.0,114190.0,0.02363]
[1757514698850,1.5592324,114200.0,114190.0,0.1976762]
[1757514699255,1.5592324,114200.0,114190.0,0.02363]
[1757514700157,1.21114,114200.0,114190.0,0.02363]
[1757514700354,1.5592324,114200.0,114190.0,0.02363]
[1757514701256,1.21114,114200.0,114190.0,0.02363]
[1757514701457,1.5592324,114200.0,114190.0,0.02363]
[1757514702152,0.2096262,114200.0,114190.0,0.1976762]
[1757514702460,0.035,114230.0,114220.0,0.02296]
[1757514702650,0.59097685,114230.0,114220.0,0.02296]
[1757514703459,0.41693065,114230.0,114220.0,0.02296]
[1757514703654,0.59397685,114230.0,114220.0,0.02296]
[1757514703954,0.3170622,114230.0,114220.0,0.02296]
[1757514704153,0.3170482,114230.0,114220.0,0.02296]
[1757514704359,0.29593155,114230.0,114220.0,0.02296]
[1757514704559,0.29593155,114230.0,114220.0,0.1970062]
[1757514704757,0.2247701,114230.0,114220.0,0.2097462]
[1757514705056,0.2022362,114230.0,114220.0,0.2097462]
[1757514705451,0.2022362,114230.0,114220.0,0.7445924]
[1757514705452,0.02819,114230.0,114220.0,0.7445924]
[1757514705650,0.2022362,114230.0,114220.0,0.0357]
[1757514705849,0.2022362,114230.0,114220.0,0.2097462]
[1757514706249,0.20709293,114230.0,114220.0,0.2097462]
[1757514706451,0.52054526,114230.0,114220.0,0.0357]
[1757514706646,0.15974526,114230.0,114220.0,0.0357]
[1757514706854,1.45098379,114230.0,114200.0,0.39125541]
[1757514707057,0.51168853,114220.0,114210.0,0.02296]
[1757514707249,0.03497,114210.0,114200.0,0.10366522]
[1757514707447,0.15088853,114210.0,114200.0,0.10366522]
[1757514708366,0.02119,114210.0,114200.0,0.11840522]
[1757514709465,0.02119,114210.0,114200.0,0.23432375]
[1757514709963,0.02119,114210.0,114200.0,0.23632375]
[1757514714466,0.15088853,114210.0,114200.0,0.12040522]
[1757514714763,0.03497,114210.0,114200.0,0.10766522]
[1757514715360,0.15088853,114210.0,114200.0,0.05741541]
[1757514716266,0.03497,114210.0,114200.0,0.17333394]
[1757514718866,0.02119,114210.0,114200.0,0.17333394]
[1757514720160,0.02119,114210.0,114200.0,0.53413394]
[1757514720463,0.11591853,114220.0,114200.0,0.65005247]
[1757514720669,0.02119,114220.0,114210.0,0.15161853]
[1757514721055,0.13710853,114220.0,114210.0,0.0357]
[1757514721867,0.02119,114220.0,114210.0,0.0357]
[1757514722460,0.13710853,114220.0,114210.0,0.0367]
[1757514723166,0.51168853,114220.0,114210.0,0.02396]
[1757514723563,0.51168853,114220.0,114210.0,0.02496]
[1757514723869,0.51168853,114220.0,114210.0,0.03371]
[1757514724469,0.51168853,114220.0,114210.0,0.04645]
[1757514724767,0.02119,114220.0,114210.0,0.16236853]
[1757514724968,0.02119,114220.0,114210.0,0.52316853]
[1757514725162,1.0222003,114230.0,114220.0,0.0357]
[1757514725163,0.03004673,114230.0,114220.0,0.0357]
[1757514725358,0.03004673,114230.0,114220.0,0.26753706]
[1757514725562,0.03004673,114230.0,114220.0,0.15161853]
[1757514726764,0.03004673,114230.0,114220.0,0.62833706]
[1757514727167,0.03004673,114230.0,114220.0,0.51241853]
[1757514727665,0.03004673,114230.0,114220.0,0.15161853]
[1757514728165,0.03004673,114230.0,114220.0,0.51241853]
[1757514728567,0.04189063,114240.0,114230.0,0.03558]
[1757514728766,0.04189063,114240.0,114230.0,0.21448834]
[1757514729269,0.04189063,114240.0,114230.0,0.15149853]
[1757514729859,0.17187916,114240.0,114230.0,0.02191]
[1757514730269,0.17387916,114240.0,114230.0,0.02191]
[1757514730770,0.18283777,114240.0,114230.0,0.02191]
[1757514732069,0.06691924,114240.0,114230.0,0.03558]
[1757514732365,0.18283777,114240.0,114230.0,0.02191]
[1757514732771,0.6595563,114240.0,114230.0,0.02191]
[1757514733270,0.54363777,114240.0,114230.0,0.02191]
[1757514733672,0.42771924,114240.0,114230.0,0.02191]
[1757514733873,0.6595563,114240.0,114230.0,0.02191]
[1757514734673,0.54363777,114240.0,114230.0,0.02191]
[1757514735074,0.54363777,114240.0,114220.0,0.02191]
[1757514735075,0.03483,114230.0,114220.0,0.02191]
[1757514735266,0.51154853,114230.0,114220.0,0.02191]
[1757514736270,0.39563,114230.0,114220.0,0.02191]
[1757514736664,0.51154853,114230.0,114220.0,0.02191]
[1757514737375,0.39563,114230.0,114220.0,0.02191]
[1757514737578,0.51154853,114230.0,114220.0,0.02191]
[1757514738367,0.39563,114230.0,114220.0,0.15149853]
[1757514738665,0.02176,114230.0,114220.0,0.15149853]
[1757514739573,0.38256,114230.0,114220.0,0.15149853]
[1757514739872,0.03071861,114240.0,114230.0,0.03558]
[1757514740173,0.03071861,114240.0,114230.0,0.51229853]
[1757514740376,0.02176,114240.0,114230.0,0.51229853]
[1757514741279,0.02276,114240.0,114230.0,0.51229853]
[1757514741469,0.02476,114240.0,114230.0,0.51229853]
[1757514742069,0.02476,114240.0,114230.0,0.52104853]
[1757514742473,0.03783,114240.0,114230.0,0.39146]
[1757514742782,0.04670575,114240.0,114230.0,0.16024853]
[1757514742979,0.04670575,114240.0,114230.0,0.04433]
[1757514743279,0.04670575,114240.0,114230.0,0.16024853]
[1757514743576,0.03783,114240.0,114230.0,0.16024853]
[1757514744078,0.03783,114240.0,114230.0,0.04433]
[1757514744280,0.03783,114240.0,114230.0,0.16024853]
[1757514745473,0.04639583,114240.0,114230.0,0.16024853]
[1757514745675,0.04639583,114240.0,114230.0,0.04433]
[1757514747174,0.03332583,114240.0,114230.0,0.04433]
[1757514747375,0.03332583,114240.0,114230.0,0.16024853]
[1757514749082,0.02476,114240.0,114230.0,0.16024853]
[1757514749285,0.02476,114240.0,114230.0,0.52104853]
[1757514749474,0.003,114240.0,114230.0,0.60857383]
[1757514749782,0.003,114240.0,114230.0,1.65095834]
[1757514750174,0.003,114240.0,114230.0,1.58796853]
[1757514750675,0.003,114240.0,114230.0,1.65095834]
[1757514750886,0.003,114240.0,114230.0,1.58796853]
[1757514751481,0.003,114240.0,114230.0,1.65095834]
[1757514751679,0.003,114240.0,114230.0,0.83403834]
[1757514751881,0.003,114240.0,114230.0,1.58804853]
[1757514752079,0.02476,114240.0,114230.0,0.77104853]
[1757514752276,0.02476,114240.0,114230.0,1.65083834]
[1757514752978,0.02476,114240.0,114230.0,1.58784853]
[1757514753672,0.02476,114240.0,114230.0,1.65083834]
[1757514755283,0.003,114240.0,114230.0,1.65083834]
[1757514755678,0.003,114240.0,114230.0,1.53491981]
[1757514755877,0.003,114240.0,114230.0,1.65083834]
[1757514756183,0.003,114240.0,114230.0,1.53491981]
[1757514756380,0.003,114240.0,114230.0,1.65083834]
[1757514756983,0.003,114240.0,114230.0,1.65195834]
[1757514757187,0.02476,114240.0,114230.0,1.65247834]
[1757514758075,0.02476,114240.0,114230.0,1.53655981]
[1757514758484,0.02476,114240.0,114230.0,1.65247834]
[1757514759385,0.003,114240.0,114230.0,1.40247834]
[1757514760794,0.003,114240.0,114230.0,1.28655981]
[1757514760986,0.003,114240.0,114230.0,1.40247834]
[1757514764294,0.02609,114240.0,114230.0,1.40167834]
[1757514764489,0.52133706,114240.0,114230.0,0.09364981]
[1757514764695,0.88213706,114240.0,114230.0,0.03066]
[1757514765390,0.76621853,114240.0,114230.0,0.00875]
[1757514765585,0.88213706,114240.0,114230.0,0.00875]
[1757514766396,0.99808728,114240.0,114230.0,0.03059]
[1757514768493,0.99808728,114240.0,114230.0,0.09357981]
[1757514768700,0.6503,114240.0,114230.0,0.03059]
[1757514768894,0.82419364,114240.0,114230.0,0.03059]
[1757514769102,0.99808728,114240.0,114230.0,0.03059]
[1757514769487,0.02609,114240.0,114230.0,0.21732364]
[1757514769691,0.02609,114240.0,114230.0,0.28031345]
[1757514770099,0.19998364,114240.0,114230.0,0.28031345]
[1757514770799,0.19998364,114240.0,114230.0,0.21732364]
[1757514771491,0.21339364,114240.0,114230.0,0.04343]
[1757514771692,0.21339364,114240.0,114230.0,0.20448364]
[1757514772394,0.38728728,114240.0,114230.0,0.03059]
[1757514772598,0.4003,114240.0,114230.0,0.03059]
[1757514772801,0.74808728,114240.0,114230.0,0.03059]
[1757514773096,1.17198092,114240.0,114230.0,0.00875]
[1757514773302,1.83573281,114240.0,114230.0,0.00875]
[1757514774497,1.83573281,114240.0,114230.0,0.03059]
[1757514774498,1.01933281,114240.0,114230.0,0.03059]
[1757514775194,0.99808728,114240.0,114230.0,0.03059]
[1757514775792,1.81420728,114240.0,114230.0,0.03059]
[1757514779503,0.99808728,114240.0,114230.0,0.03059]
[1757514779803,1.81412728,114240.0,114230.0,0.03059]
[1757514780099,1.81412728,114240.0,114230.0,0.00875]
[1757514780404,2.00837319,114240.0,114230.0,0.00875]
[1757514781095,1.85571052,114240.0,114230.0,0.00875]
[1757514781304,2.02960416,114240.0,114230.0,0.00875]
[1757514782505,1.21356416,114240.0,114230.0,0.00875]
[1757514782705,1.85523052,114240.0,114230.0,0.00875]
[1757514783211,1.85503052,114240.0,114230.0,0.00875]
[1757514783705,1.03967052,114240.0,114230.0,0.00875]
[1757514783906,1.85495052,114240.0,114230.0,0.00875]
[1757514788509,2.02884416,114240.0,114230.0,0.00875]
[1757514789008,0.03614,114210.0,114200.0,0.02231]
[1757514789198,0.74472728,114210.0,114200.0,0.02231]
[1757514789504,1.38539364,114210.0,114200.0,0.02231]
[1757514790010,1.38539364,114210.0,114200.0,0.02431]
[1757514790214,1.38539364,114210.0,114200.0,0.02531]
[1757514791105,1.38539364,114210.0,114200.0,0.02331]
[1757514791106,1.45376643,114210.0,114200.0,0.02331]
[1757514791308,1.45376643,114210.0,114200.0,0.02431]
[1757514792203,1.27987279,114210.0,114200.0,0.02431]
[1757514792405,0.63920643,114210.0,114200.0,0.02431]
[1757514793219,1.45356643,114210.0,114200.0,0.02431]
[1757514793716,0.63920643,114210.0,114200.0,0.02431]
[1757514794214,1.45356643,114210.0,114200.0,0.02431]
[1757514794413,0.46531279,114210.0,114200.0,0.02431]
[1757514794616,1.45356643,114210.0,114200.0,0.02431]
[1757514795616,1.45360643,114210.0,114200.0,0.02431]
[1757514797315,1.62750007,114210.0,114200.0,0.02431]
[1757514797610,1.62750007,114210.0,114200.0,0.002]
[1757514797914,1.80139371,114210.0,114190.0,0.00875]
[1757514798113,0.74472728,114200.0,114190.0,0.00875]
[1757514799409,0.91862092,114200.0,114190.0,0.00875]
[1757514801519,1.16862092,114200.0,114190.0,0.00875]
[1757514801719,1.18983996,114200.0,114190.0,0.00875]
[1757514802117,1.21061012,114200.0,114190.0,0.00875]
[1757514803208,2.02505012,114200.0,114190.0,0.00875]
[1757514803708,2.02505012,114200.0,114150.0,0.03023853]
[1757514803914,0.74472728,114160.0,114150.0,0.12231]
[1757514804123,0.74472728,114160.0,114150.0,0.02231]
[1757514804314,1.55920728,114160.0,114150.0,0.02231]
[1757514805212,0.39694,114160.0,114150.0,0.02231]
[1757514805414,1.55920728,114160.0,114150.0,0.02231]
[1757514805714,0.81355735,114160.0,114150.0,0.03501]
[1757514805921,1.62803735,114160.0,114150.0,0.02231]
[1757514806120,1.62803735,114160.0,114150.0,0.02431]
[1757514806421,1.62803735,114160.0,114150.0,0.02531]
[1757514806725,1.62803735,114160.0,114150.0,0.003]
[1757514807109,0.81355735,114160.0,114150.0,0.003]
[1757514807314,1.62807735,114160.0,114150.0,0.003]
[1757514808022,0.81355735,114160.0,114150.0,0.003]
[1757514808219,0.81355735,114160.0,114150.0,0.02531]
[1757514808521,1.62811735,114160.0,114150.0,0.003]
[1757514808717,1.63688153,114160.0,114150.0,0.003]
[1757514809116,1.63688153,114160.0,114150.0,0.001]
[1757514809318,0.82232153,114160.0,114150.0,0.002]
[1757514809520,1.63688153,114160.0,114150.0,0.02431]
[1757514809720,1.63688153,114160.0,114150.0,0.02231]
[1757514810422,1.63692153,114160.0,114150.0,0.02231]
[1757514810617,1.63692153,114160.0,114130.0,0.03138818]
[1757514810825,0.39694,114150.0,114140.0,0.02231]
[1757514811319,0.03614,114140.0,114130.0,0.02342072]
[1757514811526,1.21154,114140.0,114130.0,0.00111072]
[1757514812025,1.55932728,114140.0,114130.0,0.00111072]
[1757514812220,1.73322092,114140.0,114130.0,0.00111072]
[1757514812421,0.03614,114130.0,114120.0,0.00035051]
[1757514812624,0.93976255,114130.0,114120.0,0.00035051]
[1757514812919,0.03614,114120.0,114110.0,0.00035054]
[1757514813115,0.03614,114120.0,114100.0,0.00035057]
[1757514813116,0.03614,114110.0,114100.0,0.00035057]
[1757514813322,0.74472728,114110.0,114100.0,0.00035057]
[1757514813725,1.55932728,114110.0,114100.0,0.00035057]
[1757514814122,0.74472728,114110.0,114100.0,0.00035057]
[1757514814319,1.55932728,114110.0,114100.0,0.00035057]
[1757514814628,1.55940728,114110.0,114100.0,0.00035057]
[1757514815018,1.21162,114110.0,114100.0,0.00035057]
[1757514815219,1.21162,114110.0,114100.0,0.02266057]
[1757514815420,1.55940728,114110.0,114100.0,0.02466057]
[1757514815725,1.55940728,114110.0,114100.0,0.02566057]
[1757514816026,0.57083364,114110.0,114100.0,0.27566057]
[1757514816232,1.45407029,114110.0,114100.0,0.27566057]
[1757514816424,1.44356059,114110.0,114100.0,0.27566057]
[1757514817023,1.44356059,114110.0,114100.0,0.00335057]
[1757514817530,0.62884059,114110.0,114100.0,0.00335057]
[1757514817731,1.44364059,114110.0,114100.0,0.00335057]
[1757514818434,0.46545665,114110.0,114100.0,0.02566057]
[1757514818617,1.44368059,114110.0,114100.0,0.02566057]
[1757514819824,1.28029665,114110.0,114100.0,0.03913057]
[1757514820024,1.44368059,114110.0,114100.0,0.02566057]
[1757514820418,0.62884059,114110.0,114100.0,0.02566057]
[1757514820722,1.26719665,114110.0,114100.0,0.28913057]
[1757514820919,0.45231665,114110.0,114100.0,0.45251451]
[1757514821120,0.45231665,114110.0,114100.0,0.28913057]
[1757514823428,0.45231665,114110.0,114100.0,0.45251451]
[1757514824023,0.09151665,114110.0,114100.0,0.45251451]
[1757514824630,0.09151665,114110.0,114100.0,0.45151451]
[1757514825227,0.09151665,114110.0,114100.0,0.28613057]
[1757514826432,0.10526665,114110.0,114100.0,0.28613057]
[1757514826624,0.10526665,114110.0,114100.0,0.02266057]
[1757514826625,0.26753252,114110.0,114100.0,0.02266057]